[Event "Masters Tournament (MTO)"]
[Site "Biel, Switzerland"]
[Date "2026.07.16"]
[Round "4.6"]
[White "Alexakis, Dimitris"]
[Black "Pleschke, Julius Jonas"]
[Result "1/2-1/2"]
[TimeControl "100+30+30sec/move"]
[WhiteTitle "-"]
[BlackTitle "-"]
[WhiteFideId "4277023"]
[BlackFideId "54734258"]
[WhiteElo "2525"]
[BlackElo "2280"]

1. e4 {[%clk 01:39:27]} {[%emt 00:01:32]} c6 {[%clk 01:40:52]} {[%emt
00:00:09]} 2. d4 {[%clk 01:39:17]} {[%emt 00:00:41]} d5 {[%clk 01:41:10]}
{[%emt 00:00:12]} 3. e5 {[%clk 01:39:40]} {[%emt 00:00:07]} Bf5 {[%clk
01:41:35]} {[%emt 00:00:04]} 4. Nd2 {[%clk 01:40:02]} {[%emt 00:00:09]} e6
{[%clk 01:41:21]} {[%emt 00:00:44]} 5. Nb3 {[%clk 01:40:25]} {[%emt 00:00:07]}
Nd7 {[%clk 01:41:25]} {[%emt 00:00:25]} 6. Nf3 {[%clk 01:40:45]} {[%emt
00:00:11]} Ne7 {[%clk 01:41:19]} {[%emt 00:00:35]} 7. Be2 {[%clk 01:38:59]}
{[%emt 00:02:17]} Ng6 {[%clk 01:40:42]} {[%emt 00:01:06]} 8. O-O {[%clk
01:34:52]} {[%emt 00:04:37]} f6 {[%clk 01:40:40]} {[%emt 00:00:32]} 9. Ne1
{[%clk 01:29:36]} {[%emt 00:05:47]} h5 {[%clk 01:40:48]} {[%emt 00:00:22]} 10.
f4 {[%clk 01:28:06]} {[%emt 00:02:00]} h4 {[%clk 01:40:36]} {[%emt 00:00:42]}
11. a4 {[%clk 01:23:25]} {[%emt 00:05:12]} Qc7 {[%clk 01:39:08]} {[%emt
00:01:57]} 12. a5 {[%clk 01:18:43]} {[%emt 00:05:13]} a6 {[%clk 01:36:33]}
{[%emt 00:03:04]} 13. c4 {[%clk 01:10:47]} {[%emt 00:08:26]} Ne7 {[%clk
01:28:19]} {[%emt 00:08:44]} 14. Bd2 {[%clk 01:06:54]} {[%emt 00:04:24]} Be4
{[%clk 01:13:58]} {[%emt 00:14:50]} 15. Bb4 {[%clk 00:44:56]} {[%emt 00:22:27]}
Nf5 {[%clk 00:45:54]} {[%emt 00:28:34]} 16. Bh5+ {[%clk 00:33:54]} {[%emt
00:11:33]} Kd8 {[%clk 00:46:19]} {[%emt 00:00:05]} 17. Bxf8 {[%clk 00:34:14]}
{[%emt 00:00:09]} Nxf8 {[%clk 00:45:34]} {[%emt 00:01:14]} 18. Qe2 {[%clk
00:33:45]} {[%emt 00:01:00]} h3 {[%clk 00:44:40]} {[%emt 00:01:24]} 19. Bf3
{[%clk 00:16:51]} {[%emt 00:17:24]} hxg2 {[%clk 00:43:02]} {[%emt 00:02:08]} 20.
Rf2 {[%clk 00:12:53]} {[%emt 00:04:28]} g5 {[%clk 00:32:44]} {[%emt 00:10:48]}
21. Bxe4 {[%clk 00:08:33]} {[%emt 00:04:50]} Qh7 {[%clk 00:31:52]} {[%emt
00:01:22]} 22. Rxg2 {[%clk 00:07:50]} {[%emt 00:01:12]} dxe4 {[%clk 00:32:10]}
{[%emt 00:00:12]} 23. d5 {[%clk 00:03:04]} {[%emt 00:05:17]} Nh4 {[%clk
00:26:20]} {[%emt 00:06:20]} 24. Rf2 {[%clk 00:01:05]} {[%emt 00:02:29]} g4
{[%clk 00:26:37]} {[%emt 00:00:13]} 25. Qd1 {[%clk 00:00:36]} {[%emt 00:00:59]}
g3 {[%clk 00:26:06]} {[%emt 00:01:01]} 26. dxc6+ {[%clk 00:00:37]} {[%emt
00:00:28]} Ke8 {[%clk 00:26:08]} {[%emt 00:00:29]} 27. Rd2 {[%clk 00:00:39]}
{[%emt 00:00:29]} gxh2+ {[%clk 00:23:47]} {[%emt 00:02:50]} 28. Rxh2 {[%clk
00:00:47]} {[%emt 00:00:22]} e3 {[%clk 00:22:31]} {[%emt 00:01:46]} 29. Qc2
{[%clk 00:00:37]} {[%emt 00:00:40]} Qg7+ {[%clk 00:15:43]} {[%emt 00:07:18]} 30.
Kf1 {[%clk 00:00:35]} {[%emt 00:00:32]} Qg3 {[%clk 00:12:49]} {[%emt 00:03:23]}
31. cxb7 {[%clk 00:00:44]} {[%emt 00:00:21]} Rb8 {[%clk 00:12:33]} {[%emt
00:00:47]} 32. Nc5 {[%clk 00:00:41]} {[%emt 00:00:34]} Rg8 {[%clk 00:12:16]}
{[%emt 00:00:47]} 33. Rxh4 {[%clk 00:00:45]} {[%emt 00:00:25]} Qxh4 {[%clk
00:11:55]} {[%emt 00:00:52]} 34. Ne4 {[%clk 00:00:34]} {[%emt 00:00:42]} Qxf4+
{[%clk 00:10:04]} {[%emt 00:02:20]} 35. Ke2 {[%clk 00:01:02]} {[%emt 00:00:01]}
Qxe5 {[%clk 00:08:55]} {[%emt 00:01:39]} 36. c5 {[%clk 00:01:07]} {[%emt
00:00:26]} f5 {[%clk 00:03:20]} {[%emt 00:06:05]} 37. c6 {[%clk 00:00:41]}
{[%emt 00:00:55]} fxe4 {[%clk 00:00:58]} {[%emt 00:02:52]} 38. c7 {[%clk
00:01:08]} {[%emt 00:00:03]} Qb5+ {[%clk 00:00:56]} {[%emt 00:00:30]} 39. Kxe3
{[%clk 00:00:44]} {[%emt 00:00:56]} Qxb7 {[%clk 00:00:39]} {[%emt 00:00:47]} 40.
cxb8=Q+ {[%clk 00:00:34]} {[%emt 00:00:40]} Qxb8 {[%clk 00:00:58]} {[%emt
00:00:11]} 41. Qxe4 {[%clk 00:16:15]} {[%emt 00:14:49]} Qb3+ {[%clk 00:27:48]}
{[%emt 00:03:36]} 42. Kd2 {[%clk 00:08:38]} {[%emt 00:08:11]} Qxb2+ {[%clk
00:26:43]} {[%emt 00:01:35]} 43. Nc2 {[%clk 00:09:05]} {[%emt 00:00:02]} Rg5
{[%clk 00:19:57]} {[%emt 00:07:16]} 44. Ra3 {[%clk 00:07:17]} {[%emt 00:02:19]}
Rd5+ {[%clk 00:15:35]} {[%emt 00:04:49]} 1/2-1/2

[Event "Masters Tournament (MTO)"]
[Site "Biel, Switzerland"]
[Date "2026.07.16"]
[Round "4.7"]
[White "Georgescu, Lena"]
[Black "Gloeckler, Christian"]
[Result "0-1"]
[TimeControl "100+30+30sec/move"]
[WhiteTitle "-"]
[BlackTitle "-"]
[WhiteFideId "1331973"]
[BlackFideId "34608966"]
[WhiteElo "2253"]
[BlackElo "2506"]

1. e4 {[%clk 01:40:54]} {[%emt 00:00:04]} e5 {[%clk 01:40:47]} {[%emt
00:00:04]} 2. Nf3 {[%clk 01:41:13]} {[%emt 00:00:21]} Nc6 {[%clk 01:41:11]}
{[%emt 00:00:05]} 3. Bb5 {[%clk 01:41:29]} {[%emt 00:00:14]} a6 {[%clk
01:41:35]} {[%emt 00:00:07]} 4. Ba4 {[%clk 01:41:54]} {[%emt 00:00:04]} Nf6
{[%clk 01:41:58]} {[%emt 00:00:07]} 5. O-O {[%clk 01:42:08]} {[%emt 00:00:16]}
Be7 {[%clk 01:42:22]} {[%emt 00:00:06]} 6. Re1 {[%clk 01:42:27]} {[%emt
00:00:10]} b5 {[%clk 01:42:47]} {[%emt 00:00:06]} 7. Bb3 {[%clk 01:42:54]}
{[%emt 00:00:04]} O-O {[%clk 01:43:07]} {[%emt 00:00:09]} 8. a4 {[%clk
01:40:30]} {[%emt 00:02:54]} b4 {[%clk 01:43:30]} {[%emt 00:00:07]} 9. d4
{[%clk 01:40:32]} {[%emt 00:00:28]} d6 {[%clk 01:43:54]} {[%emt 00:00:06]} 10.
dxe5 {[%clk 01:40:45]} {[%emt 00:00:17]} Nxe5 {[%clk 01:44:17]} {[%emt
00:00:07]} 11. Bf4 {[%clk 01:40:28]} {[%emt 00:00:47]} Ng6 {[%clk 01:44:40]}
{[%emt 00:00:07]} 12. Bg3 {[%clk 01:40:54]} {[%emt 00:00:04]} Bb7 {[%clk
01:45:02]} {[%emt 00:00:09]} 13. Nbd2 {[%clk 01:38:46]} {[%emt 00:02:37]} Nd7
{[%clk 01:45:24]} {[%emt 00:00:07]} 14. Nc4 {[%clk 01:36:37]} {[%emt 00:02:40]}
Nc5 {[%clk 01:45:48]} {[%emt 00:00:07]} 15. e5 {[%clk 01:35:32]} {[%emt
00:01:35]} Nxb3 {[%clk 01:46:11]} {[%emt 00:00:06]} 16. cxb3 {[%clk 01:35:56]}
{[%emt 00:00:06]} f5 {[%clk 01:46:35]} {[%emt 00:00:07]} 17. exd6 {[%clk
01:34:16]} {[%emt 00:02:10]} cxd6 {[%clk 01:46:56]} {[%emt 00:00:09]} 18. Bxd6
{[%clk 01:32:18]} {[%emt 00:02:28]} Bxd6 {[%clk 01:47:16]} {[%emt 00:00:09]} 19.
Qxd6 {[%clk 01:31:42]} {[%emt 00:01:06]} Bxf3 {[%clk 01:47:38]} {[%emt
00:00:08]} 20. gxf3 {[%clk 01:25:23]} {[%emt 00:06:49]} Qxd6 {[%clk 01:48:00]}
{[%emt 00:00:09]} 21. Nxd6 {[%clk 01:25:47]} {[%emt 00:00:05]} Rad8 {[%clk
01:48:25]} {[%emt 00:00:05]} 22. Red1 {[%clk 01:16:08]} {[%emt 00:10:09]} f4
{[%clk 01:43:50]} {[%emt 00:05:04]} 23. Nb7 {[%clk 00:40:00]} {[%emt 00:36:39]}
Rde8 {[%clk 01:35:05]} {[%emt 00:09:16]} 24. Rac1 {[%clk 00:37:08]} {[%emt
00:03:21]} Nh4 {[%clk 01:17:06]} {[%emt 00:18:29]} 25. Rc7 {[%clk 00:34:29]}
{[%emt 00:03:09]} Rf6 {[%clk 01:13:58]} {[%emt 00:03:38]} 26. Kf1 {[%clk
00:26:25]} {[%emt 00:08:34]} Rfe6 {[%clk 01:07:36]} {[%emt 00:06:52]} 27. Nc5
{[%clk 00:23:19]} {[%emt 00:03:37]} Rg6 {[%clk 01:07:30]} {[%emt 00:00:35]} 28.
Ne4 {[%clk 00:18:07]} {[%emt 00:05:42]} Nxf3 {[%clk 01:07:32]} {[%emt
00:00:28]} 29. Ke2 {[%clk 00:18:23]} {[%emt 00:00:14]} Nxh2 {[%clk 01:02:32]}
{[%emt 00:05:29]} 30. Rd4 {[%clk 00:18:04]} {[%emt 00:00:50]} f3+ {[%clk
00:48:48]} {[%emt 00:14:15]} 31. Kd3 {[%clk 00:15:30]} {[%emt 00:03:03]} Ng4
{[%clk 00:43:11]} {[%emt 00:06:05]} 32. Rdd7 {[%clk 00:13:36]} {[%emt
00:02:25]} Ne5+ {[%clk 00:43:32]} {[%emt 00:00:09]} 33. Kd4 {[%emt 00:00:05]}
0-1

[Event "Masters Tournament (MTO)"]
[Site "Biel, Switzerland"]
[Date "2026.07.16"]
[Round "4.8"]
[White "Shukhman, Anna"]
[Black "Balabayeva, Xeniya"]
[Result "1/2-1/2"]
[TimeControl "100+30+30sec/move"]
[WhiteTitle "-"]
[BlackTitle "-"]
[WhiteFideId "54180058"]
[BlackFideId "13719688"]
[WhiteElo "2443"]
[BlackElo "2302"]

1. e4 {[%clk 01:40:56]} {[%emt 00:00:03]} e5 {[%clk 01:40:54]} {[%emt
00:00:07]} 2. Nf3 {[%clk 01:41:23]} {[%emt 00:00:04]} Nc6 {[%clk 01:41:17]}
{[%emt 00:00:05]} 3. Bc4 {[%clk 01:41:51]} {[%emt 00:00:03]} Nf6 {[%clk
01:41:24]} {[%emt 00:00:23]} 4. d3 {[%clk 01:42:18]} {[%emt 00:00:03]} Be7
{[%clk 01:41:43]} {[%emt 00:00:11]} 5. O-O {[%clk 01:42:43]} {[%emt 00:00:05]}
O-O {[%clk 01:42:07]} {[%emt 00:00:06]} 6. Re1 {[%clk 01:43:11]} {[%emt
00:00:02]} d6 {[%clk 01:42:23]} {[%emt 00:00:15]} 7. a4 {[%emt 00:05:36]} a5
{[%clk 01:37:21]} 8. c3 {[%clk 01:42:10]} {[%emt 00:01:57]} Be6 {[%clk
01:34:00]} {[%emt 00:03:50]} 9. Bxe6 {[%clk 01:42:35]} {[%emt 00:00:05]} fxe6
{[%clk 01:34:24]} {[%emt 00:00:06]} 10. Na3 {[%clk 01:43:03]} {[%emt 00:00:03]}
h6 {[%clk 01:27:45]} {[%emt 00:07:09]} 11. Bd2 {[%clk 01:43:13]} {[%emt
00:00:20]} Qd7 {[%clk 01:24:02]} {[%emt 00:04:12]} 12. b4 {[%clk 01:37:47]}
{[%emt 00:05:56]} axb4 {[%clk 01:08:20]} {[%emt 00:16:13]} 13. cxb4 {[%clk
01:38:11]} {[%emt 00:00:06]} Nd4 {[%clk 01:08:46]} {[%emt 00:00:03]} 14. Nxd4
{[%clk 01:37:47]} {[%emt 00:00:54]} exd4 {[%clk 01:09:11]} {[%emt 00:00:05]} 15.
a5 {[%clk 01:37:57]} {[%emt 00:00:21]} e5 {[%clk 01:02:29]} {[%emt 00:07:11]}
16. Qb3+ {[%clk 01:26:41]} {[%emt 00:11:46]} Kh7 {[%clk 01:00:49]} {[%emt
00:02:11]} 17. Rec1 {[%clk 01:18:13]} {[%emt 00:08:57]} d5 {[%clk 00:39:06]}
{[%emt 00:22:13]} 18. exd5 {[%clk 01:14:43]} {[%emt 00:04:01]} Nxd5 {[%clk
00:36:58]} {[%emt 00:02:38]} 19. Re1 {[%clk 01:10:05]} {[%emt 00:05:08]} Rf5
{[%clk 00:34:11]} {[%emt 00:03:17]} 20. Nc4 {[%clk 01:08:55]} {[%emt 00:01:40]}
Qe6 {[%clk 00:30:01]} {[%emt 00:04:40]} 21. b5 {[%clk 00:56:28]} {[%emt
00:12:56]} Bg5 {[%clk 00:18:42]} {[%emt 00:11:49]} 22. f3 {[%clk 00:49:34]}
{[%emt 00:07:24]} Bf4 {[%clk 00:15:57]} {[%emt 00:03:16]} 23. Ra2 {[%clk
00:37:37]} {[%emt 00:12:27]} Rg5 {[%clk 00:14:04]} {[%emt 00:02:22]} 24. Kh1
{[%clk 00:35:20]} {[%emt 00:02:47]} Qg6 {[%clk 00:12:02]} {[%emt 00:02:32]} 25.
Nxe5 {[%clk 00:29:40]} {[%emt 00:06:11]} Rxe5 {[%clk 00:10:51]} {[%emt
00:01:40]} 26. Rxe5 {[%clk 00:29:25]} {[%emt 00:00:45]} Bxe5 {[%clk 00:11:20]}
{[%emt 00:00:02]} 27. Qxd5 {[%clk 00:29:47]} {[%emt 00:00:07]} Qxd3 {[%clk
00:11:44]} {[%emt 00:00:06]} 28. Qe4+ {[%clk 00:27:59]} {[%emt 00:02:19]} Qxe4
{[%clk 00:11:56]} {[%emt 00:00:17]} 29. fxe4 {[%clk 00:28:27]} {[%emt
00:00:02]} c5 {[%clk 00:04:59]} {[%emt 00:07:28]} 30. bxc6 {[%clk 00:28:09]}
{[%emt 00:00:48]} bxc6 {[%clk 00:05:24]} {[%emt 00:00:05]} 31. g3 {[%clk
00:24:44]} {[%emt 00:03:55]} c5 {[%clk 00:01:24]} {[%emt 00:04:29]} 32. Rc2
{[%clk 00:23:49]} {[%emt 00:01:25]} Rc8 {[%clk 00:00:59]} {[%emt 00:00:55]} 33.
Rc4 {[%clk 00:24:05]} {[%emt 00:00:14]} d3 {[%clk 00:00:44]} {[%emt 00:00:45]}
34. a6 {[%clk 00:18:04]} {[%emt 00:06:32]} Ra8 {[%clk 00:00:37]} {[%emt
00:00:36]} 35. Rxc5 {[%clk 00:16:45]} {[%emt 00:01:49]} Rxa6 {[%clk 00:01:03]}
{[%emt 00:00:05]} 36. Rd5 {[%clk 00:16:03]} {[%emt 00:01:12]} Ra4 {[%clk
00:01:20]} {[%emt 00:00:13]} 37. Rxe5 {[%clk 00:15:36]} {[%emt 00:00:56]} Ra1+
{[%clk 00:01:45]} {[%emt 00:00:05]} 38. Kg2 {[%clk 00:16:03]} {[%emt 00:00:03]}
Ra2 {[%clk 00:02:11]} {[%emt 00:00:04]} 39. Kf3 {[%clk 00:16:22]} {[%emt
00:00:11]} Rxd2 {[%clk 00:02:35]} {[%emt 00:00:07]} 40. Rd5 {[%clk 00:16:35]}
{[%emt 00:00:16]} Rxh2 {[%clk 00:02:53]} {[%emt 00:00:12]} 41. Rxd3 {[%clk
00:16:50]} {[%emt 00:00:16]} Kg6 {[%clk 00:01:00]} {[%emt 00:02:22]} 42. Kf4
{[%clk 00:16:49]} {[%emt 00:00:32]} Kf6 {[%clk 00:22:20]} {[%emt 00:09:09]} 43.
Rd6+ {[%clk 00:47:12]} {[%emt 00:00:07]} Ke7 {[%clk 00:20:43]} {[%emt
00:02:08]} 44. Ra6 {[%clk 00:47:37]} {[%emt 00:00:03]} Rh5 {[%clk 00:18:05]}
{[%emt 00:03:09]} 45. e5 {[%clk 00:47:25]} {[%emt 00:00:43]} Rg5 {[%clk
00:15:30]} {[%emt 00:03:04]} 46. g4 {[%clk 00:47:34]} {[%emt 00:00:21]} Kd7
{[%clk 00:13:55]} {[%emt 00:02:05]} 47. Ra7+ {[%clk 00:47:48]} {[%emt
00:00:16]} Ke6 {[%clk 00:11:41]} {[%emt 00:02:44]} 48. Rb7 {[%clk 00:48:03]}
{[%emt 00:00:15]} Rg6 {[%clk 00:12:08]} {[%emt 00:00:04]} 49. Rc7 {[%clk
00:47:36]} {[%emt 00:00:57]} Rg5 {[%clk 00:12:33]} {[%emt 00:00:05]} 50. Ra7
{[%clk 00:47:47]} {[%emt 00:00:18]} Rg6 {[%clk 00:12:52]} {[%emt 00:00:10]} 51.
Ra6+ {[%clk 00:48:11]} {[%emt 00:00:07]} 1/2-1/2

[Event "Masters Tournament (MTO)"]
[Site "Biel, Switzerland"]
[Date "2026.07.16"]
[Round "4.9"]
[White "Cao, Qingfeng"]
[Black "Baenziger, Fabian"]
[Result "1/2-1/2"]
[TimeControl "100+30+30sec/move"]
[WhiteTitle "-"]
[BlackTitle "-"]
[WhiteFideId "8627568"]
[BlackFideId "1330110"]
[WhiteElo "2365"]
[BlackElo "2435"]

1. Nf3 {[%clk 01:39:42]} {[%emt 00:01:12]} d5 {[%clk 01:40:35]} {[%emt
00:00:25]} 2. g3 {[%clk 01:39:23]} {[%emt 00:00:49]} Nf6 {[%clk 01:40:26]}
{[%emt 00:00:39]} 3. Bg2 {[%clk 01:39:37]} {[%emt 00:00:17]} e6 {[%clk
01:40:45]} {[%emt 00:00:12]} 4. c4 {[%clk 01:37:33]} {[%emt 00:02:33]} Bd6
{[%clk 01:40:16]} {[%emt 00:01:00]} 5. d4 {[%clk 01:35:51]} {[%emt 00:02:11]}
O-O {[%clk 01:40:36]} {[%emt 00:00:10]} 6. O-O {[%clk 01:35:11]} {[%emt
00:01:09]} c6 {[%clk 01:40:28]} {[%emt 00:00:39]} 7. Qc2 {[%clk 01:30:27]}
{[%emt 00:05:14]} Nbd7 {[%clk 01:40:11]} {[%emt 00:00:47]} 8. Nbd2 {[%clk
01:11:56]} {[%emt 00:19:01]} Re8 {[%clk 01:40:16]} {[%emt 00:00:25]} 9. Re1
{[%clk 01:07:33]} {[%emt 00:04:53]} h6 {[%clk 01:39:28]} {[%emt 00:01:18]} 10.
a3 {[%clk 00:57:30]} {[%emt 00:10:34]} a5 {[%clk 01:35:34]} {[%emt 00:04:24]}
11. b3 {[%clk 00:57:16]} {[%emt 00:00:44]} e5 {[%clk 01:19:01]} {[%emt
00:17:03]} 12. cxd5 {[%clk 00:57:03]} {[%emt 00:00:43]} cxd5 {[%clk 01:15:48]}
{[%emt 00:03:42]} 13. dxe5 {[%clk 00:57:16]} {[%emt 00:00:16]} Nxe5 {[%clk
01:16:14]} {[%emt 00:00:05]} 14. Bb2 {[%clk 00:57:03]} {[%emt 00:00:43]} Nc6
{[%clk 01:16:28]} {[%emt 00:00:16]} 15. Nd4 {[%clk 00:51:54]} {[%emt 00:05:39]}
Bd7 {[%clk 01:14:13]} {[%emt 00:02:45]} 16. Nxc6 {[%clk 00:44:51]} {[%emt
00:07:33]} Bxc6 {[%clk 01:12:13]} {[%emt 00:02:30]} 17. Nf3 {[%clk 00:45:01]}
{[%emt 00:00:20]} Rc8 {[%clk 01:06:12]} {[%emt 00:06:30]} 18. Bd4 {[%clk
00:44:29]} {[%emt 00:01:02]} Bd7 {[%clk 01:03:18]} {[%emt 00:03:25]} 19. Qb2
{[%clk 00:40:54]} {[%emt 00:04:05]} Bf5 {[%clk 00:47:40]} {[%emt 00:16:08]} 20.
Bxf6 {[%clk 00:40:24]} {[%emt 00:01:00]} gxf6 {[%clk 00:46:38]} {[%emt
00:01:33]} 21. Qd2 {[%clk 00:39:55]} {[%emt 00:00:58]} Kg7 {[%clk 00:45:48]}
{[%emt 00:01:20]} 22. Nd4 {[%clk 00:36:35]} {[%emt 00:03:50]} Be6 {[%clk
00:39:41]} {[%emt 00:06:37]} 23. Bxd5 {[%clk 00:31:43]} {[%emt 00:05:22]} Be5
{[%clk 00:38:56]} {[%emt 00:01:15]} 24. e4 {[%clk 00:29:19]} {[%emt 00:02:54]}
Qb6 {[%clk 00:39:12]} {[%emt 00:00:14]} 25. Rad1 {[%clk 00:28:46]} {[%emt
00:01:04]} Qxd4 {[%clk 00:35:39]} {[%emt 00:04:03]} 26. Qxd4 {[%clk 00:29:08]}
{[%emt 00:00:08]} Bxd4 {[%clk 00:36:07]} {[%emt 00:00:02]} 27. Rxd4 {[%clk
00:29:27]} {[%emt 00:00:10]} Rc3 {[%clk 00:36:31]} {[%emt 00:00:06]} 28. Re3
{[%clk 00:14:26]} {[%emt 00:15:31]} Rxe3 {[%clk 00:28:46]} {[%emt 00:08:15]} 29.
fxe3 {[%clk 00:14:54]} {[%emt 00:00:02]} b6 {[%clk 00:25:38]} {[%emt 00:03:38]}
30. Kf2 {[%clk 00:13:34]} {[%emt 00:01:49]} Kg6 {[%clk 00:25:00]} {[%emt
00:01:09]} 31. Kf3 {[%clk 00:13:22]} {[%emt 00:00:42]} b5 {[%clk 00:22:13]}
{[%emt 00:03:18]} 32. b4 {[%clk 00:10:13]} {[%emt 00:03:38]} axb4 {[%clk
00:22:36]} {[%emt 00:00:08]} 33. Rxb4 {[%clk 00:08:19]} {[%emt 00:02:23]} Bd7
{[%clk 00:22:58]} {[%emt 00:00:08]} 34. Rd4 {[%clk 00:08:40]} {[%emt 00:00:09]}
Re7 {[%clk 00:22:52]} {[%emt 00:00:36]} 35. Rd3 {[%clk 00:07:53]} {[%emt
00:01:17]} h5 {[%clk 00:20:04]} {[%emt 00:03:18]} 36. Kf4 {[%clk 00:07:14]}
{[%emt 00:01:09]} Bg4 {[%clk 00:16:57]} {[%emt 00:03:38]} 37. Bc6 {[%clk
00:04:29]} {[%emt 00:03:14]} Rc7 {[%clk 00:13:33]} {[%emt 00:03:53]} 38. Rd6
{[%clk 00:04:17]} {[%emt 00:00:43]} Kg7 {[%clk 00:13:57]} {[%emt 00:00:06]} 39.
e5 {[%clk 00:00:34]} {[%emt 00:04:13]} fxe5+ {[%clk 00:13:32]} {[%emt
00:00:55]} 40. Kxe5 {[%clk 00:01:02]} {[%emt 00:00:02]} Be2 {[%clk 00:12:45]}
{[%emt 00:01:17]} 41. Kf4 {[%clk 00:11:07]} {[%emt 00:20:25]} Ra7 {[%clk
00:39:48]} {[%emt 00:03:28]} 42. Rd7 {[%clk 00:06:26]} {[%emt 00:05:10]} Ra4+
{[%clk 00:35:43]} {[%emt 00:04:35]} 43. Kg5 {[%clk 00:05:26]} {[%emt 00:01:29]}
Rg4+ {[%clk 00:34:49]} {[%emt 00:01:24]} 44. Kf5 {[%clk 00:05:54]} {[%emt
00:00:02]} Rc4 {[%clk 00:29:01]} {[%emt 00:06:19]} 45. Rd6 {[%clk 00:06:22]}
{[%emt 00:00:02]} Bg4+ {[%clk 00:29:18]} {[%emt 00:00:12]} 46. Ke5 {[%clk
00:06:48]} {[%emt 00:00:04]} f6+ {[%clk 00:29:41]} {[%emt 00:00:08]} 47. Rxf6
{[%clk 00:07:10]} {[%emt 00:00:08]} Rc5+ {[%clk 00:30:06]} {[%emt 00:00:05]} 48.
Kd4 {[%clk 00:07:36]} {[%emt 00:00:04]} Rc4+ {[%clk 00:30:32]} {[%emt
00:00:04]} 1/2-1/2

[Event "Masters Tournament (MTO)"]
[Site "Biel, Switzerland"]
[Date "2026.07.16"]
[Round "4.10"]
[White "Sasikiran, Krishnan"]
[Black "Tkhoruk, Roman"]
[Result "1-0"]
[TimeControl "100+30+30sec/move"]
[WhiteTitle "-"]
[BlackTitle "-"]
[WhiteFideId "5004985"]
[BlackFideId "34161589"]
[WhiteElo "2546"]
[BlackElo "1967"]

1. d4 {[%clk 01:40:33]} {[%emt 00:00:28]} Nf6 {[%clk 01:40:53]} {[%emt
00:00:07]} 2. c4 {[%clk 01:40:53]} {[%emt 00:00:09]} e6 {[%clk 01:41:14]}
{[%emt 00:00:09]} 3. Nc3 {[%clk 01:41:03]} {[%emt 00:00:19]} Bb4 {[%clk
01:41:33]} {[%emt 00:00:10]} 4. e3 {[%clk 01:41:11]} {[%emt 00:00:23]} O-O
{[%clk 01:41:43]} {[%emt 00:00:20]} 5. Bd3 {[%clk 01:40:23]} {[%emt 00:01:18]}
d5 {[%clk 01:41:24]} {[%emt 00:00:49]} 6. Nf3 {[%clk 01:36:16]} {[%emt
00:04:37]} b6 {[%clk 01:40:08]} {[%emt 00:01:47]} 7. cxd5 {[%clk 01:34:45]}
{[%emt 00:02:00]} exd5 {[%clk 01:39:18]} {[%emt 00:01:20]} 8. O-O {[%clk
01:33:39]} {[%emt 00:01:36]} Bg4 {[%clk 01:33:18]} {[%emt 00:06:30]} 9. Ne2
{[%clk 01:27:08]} {[%emt 00:07:01]} Nc6 {[%clk 01:22:44]} {[%emt 00:11:04]} 10.
Qa4 {[%clk 01:18:16]} {[%emt 00:09:22]} Qd6 {[%clk 01:12:47]} {[%emt 00:10:27]}
11. a3 {[%clk 01:13:03]} {[%emt 00:05:44]} Bxf3 {[%clk 01:11:01]} {[%emt
00:02:15]} 12. gxf3 {[%clk 01:13:04]} {[%emt 00:00:28]} Ba5 {[%clk 01:11:13]}
{[%emt 00:00:18]} 13. b4 {[%clk 01:11:57]} {[%emt 00:01:38]} Nxb4 {[%clk
01:10:41]} {[%emt 00:01:01]} 14. axb4 {[%clk 01:12:05]} {[%emt 00:00:22]} Bxb4
{[%clk 01:11:03]} {[%emt 00:00:08]} 15. e4 {[%clk 01:09:12]} {[%emt 00:03:24]}
dxe4 {[%clk 01:07:04]} {[%emt 00:04:29]} 16. fxe4 {[%clk 01:06:52]} {[%emt
00:02:50]} Nh5 {[%clk 01:06:54]} {[%emt 00:00:41]} 17. e5 {[%clk 01:03:51]}
{[%emt 00:03:30]} Qe7 {[%clk 01:07:13]} {[%emt 00:00:11]} 18. Be4 {[%clk
00:58:47]} {[%emt 00:05:34]} Rad8 {[%clk 01:06:12]} {[%emt 00:01:30]} 19. Qc6
{[%clk 00:53:40]} {[%emt 00:05:38]} a5 {[%clk 01:06:03]} {[%emt 00:00:39]} 20.
Bf3 {[%clk 00:52:00]} {[%emt 00:02:10]} Qh4 {[%clk 01:03:23]} {[%emt 00:03:09]}
21. Kh1 {[%clk 00:49:10]} {[%emt 00:03:21]} f6 {[%clk 00:59:53]} {[%emt
00:04:01]} 22. Rg1 {[%clk 00:45:55]} {[%emt 00:03:44]} fxe5 {[%clk 00:56:06]}
{[%emt 00:04:17]} 23. Bg5 {[%clk 00:45:05]} {[%emt 00:01:20]} Qxf2 {[%clk
00:55:09]} {[%emt 00:01:27]} 24. Raf1 {[%clk 00:44:13]} {[%emt 00:01:22]} 1-0